[Event "Early-Titled-Tuesday-Blitz-September-05-2023"]
[Site "Chess.com"]
[Date "2023.09.05"]
[Round "7"]
[White "blitzking1729"]
[Black "DanielDardha2005"]
[Result "1-0"]
[WhiteElo "2779"]
[BlackElo "2942"]
[TimeControl "180+1"]
[EndTime "9:17:51 PDT"]
[Termination "blitzking1729 won by resignation"]

1. c4 {[%clk 0:03:00.9]} 1... c6 {[%clk 0:02:59.5]} 2. Nf3 {[%clk 0:03:00.4]}
2... d5 {[%clk 0:02:59.9]} 3. e3 {[%clk 0:03:00.8]} 3... Nf6 {[%clk 0:02:59.9]}
4. Nc3 {[%clk 0:03:01.2]} 4... a6 {[%clk 0:02:59]} 5. Be2 {[%clk 0:03:00.8]}
5... Bf5 {[%clk 0:02:52.6]} 6. Qb3 {[%clk 0:03:00.4]} 6... b5 {[%clk 0:02:47.9]}
7. cxd5 {[%clk 0:02:54.9]} 7... cxd5 {[%clk 0:02:48.8]} 8. a4 {[%clk 0:02:43.3]}
8... b4 {[%clk 0:02:47.9]} 9. Qxb4 {[%clk 0:02:37.2]} 9... Nc6 {[%clk
0:02:35.3]} 10. Qb3 {[%clk 0:02:28.1]} 10... e5 {[%clk 0:02:33]} 11. O-O {[%clk
0:02:25.7]} 11... d4 {[%clk 0:02:14.3]} 12. exd4 {[%clk 0:02:16.9]} 12... exd4
{[%clk 0:02:15.2]} 13. Re1 {[%clk 0:02:12.1]} 13... Be7 {[%clk 0:01:57.6]} 14.
Bc4 {[%clk 0:01:33.5]} 14... O-O {[%clk 0:00:50.7]} 15. Nd5 {[%clk 0:01:16.5]}
15... Nxd5 {[%clk 0:00:51]} 16. Bxd5 {[%clk 0:01:17.4]} 16... Rb8 {[%clk
0:00:43.6]} 17. Qc4 {[%clk 0:01:15.2]} 17... Nb4 {[%clk 0:00:42.7]} 18. Be4
{[%clk 0:01:14.6]} 18... Bxe4 {[%clk 0:00:23.8]} 19. Rxe4 {[%clk 0:01:15.5]}
19... d3 {[%clk 0:00:16.8]} 20. b3 {[%clk 0:00:40.4]} 20... Rc8 {[%clk
0:00:14.5]} 21. Qd4 {[%clk 0:00:39.4]} 21... Qxd4 {[%clk 0:00:10.3]} 22. Nxd4
{[%clk 0:00:39.6]} 22... Bf6 {[%clk 0:00:10.5]} 23. Rb1 {[%clk 0:00:39.6]} 23...
Rfe8 {[%clk 0:00:04.5]} 24. Rxe8+ {[%clk 0:00:39.4]} 24... Rxe8 {[%clk
0:00:05.4]} 25. Ba3 {[%clk 0:00:39.4]} 25... Nc2 {[%clk 0:00:03.8]} 26. Nxc2
{[%clk 0:00:37.1]} 26... dxc2 {[%clk 0:00:04.7]} 27. Rc1 {[%clk 0:00:37.8]}
27... Re2 {[%clk 0:00:05.1]} 28. h3 {[%clk 0:00:09.3]} 28... Rxd2 {[%clk
0:00:04.6]} 29. Kh2 {[%clk 0:00:10]} 29... Rxf2 {[%clk 0:00:03.9]} 30. Kg3
{[%clk 0:00:09.9]} 30... Rd2 {[%clk 0:00:03]} 31. Bb4 {[%clk 0:00:07.3]} 31...
Re2 {[%clk 0:00:02.6]} 32. Kf3 {[%clk 0:00:07.6]} 32... Re8 {[%clk 0:00:01.5]}
33. Rxc2 {[%clk 0:00:07.7]} 33... h5 {[%clk 0:00:02.3]} 34. Bd6 {[%clk
0:00:07.5]} 34... Bd4 {[%clk 0:00:02.7]} 35. Bf4 {[%clk 0:00:06.6]} 35... Rd8
{[%clk 0:00:01.9]} 36. Rd2 {[%clk 0:00:06.9]} 36... Bf6 {[%clk 0:00:01.8]} 37.
Rxd8+ {[%clk 0:00:07]} 37... Bxd8 {[%clk 0:00:02.7]} 38. Ke4 {[%clk 0:00:07.7]}
38... Kf8 {[%clk 0:00:03.3]} 39. Kd5 {[%clk 0:00:08.3]} 39... Ke7 {[%clk
0:00:03.7]} 40. b4 {[%clk 0:00:08.7]} 40... Kd7 {[%clk 0:00:03.9]} 41. Be5
{[%clk 0:00:08.7]} 41... g5 {[%clk 0:00:03.4]} 42. Bd4 {[%clk 0:00:06.1]} 42...
g4 {[%clk 0:00:03.5]} 43. hxg4 {[%clk 0:00:05.9]} 43... hxg4 {[%clk 0:00:04.3]}
44. b5 {[%clk 0:00:06.5]} 44... axb5 {[%clk 0:00:04.7]} 45. axb5 {[%clk
0:00:07.4]} 45... Bc7 {[%clk 0:00:04]} 46. b6 {[%clk 0:00:07.5]} 46... Bg3
{[%clk 0:00:03.6]} 47. Be5 {[%clk 0:00:07.1]} 47... Bxe5 {[%clk 0:00:03.5]} 48.
Kxe5 {[%clk 0:00:08]} 48... Kc6 {[%clk 0:00:04.1]} 49. Kf6 {[%clk 0:00:07.2]}
49... Kxb6 {[%clk 0:00:04.1]} 50. Kxf7 {[%clk 0:00:03.7]} 50... Kc5 {[%clk
0:00:04.6]} 51. Kg6 {[%clk 0:00:04.3]} 51... Kd5 {[%clk 0:00:04.9]} 52. Kg5
{[%clk 0:00:04.7]} 52... g3 {[%clk 0:00:03.8]} 53. Kg4 {[%clk 0:00:04.9]} 53...
Ke6 {[%clk 0:00:03.7]} 54. Kxg3 {[%clk 0:00:05.2]} 54... Kf5 {[%clk 0:00:02.9]}
55. Kh4 {[%clk 0:00:05.7]} 55... Kf6 {[%clk 0:00:02.6]} 56. Kh5 {[%clk
0:00:05.7]} 56... Kf7 {[%clk 0:00:02]} 57. Kh6 {[%clk 0:00:05.7]} 57... Ke6
{[%clk 0:00:01.6]} 58. g4 {[%clk 0:00:05.1]} 58... Kf7 {[%clk 0:00:02.2]} 59. g5
{[%clk 0:00:04.5]} 59... Kg8 {[%clk 0:00:02.6]} 60. Kg6 {[%clk 0:00:04.9]} 60...
Kh8 {[%clk 0:00:02.6]} 61. Kf7 {[%clk 0:00:05.1]} 1-0

[Event "Early-Titled-Tuesday-Blitz-September-05-2023"]
[Site "Chess.com"]
[Date "2023.09.05"]
[Round "7"]
[White "SashaKuzhilniy"]
[Black "Herman-NY"]
[Result "1-0"]
[WhiteElo "2624"]
[BlackElo "2492"]
[TimeControl "180+1"]
[EndTime "9:17:54 PDT"]
[Termination "SashaKuzhilniy won by checkmate"]

1. b3 {[%clk 0:02:55.9]} 1... d5 {[%clk 0:03:00]} 2. Bb2 {[%clk 0:02:55.4]} 2...
Bg4 {[%clk 0:03:00.7]} 3. h3 {[%clk 0:02:50.7]} 3... Bh5 {[%clk 0:03:01]} 4. c4
{[%clk 0:02:49.7]} 4... d4 {[%clk 0:03:00.7]} 5. Nf3 {[%clk 0:02:49.2]} 5...
Bxf3 {[%clk 0:02:59.1]} 6. gxf3 {[%clk 0:02:49.3]} 6... e5 {[%clk 0:02:56.8]} 7.
d3 {[%clk 0:02:43.2]} 7... a5 {[%clk 0:02:52.2]} 8. a3 {[%clk 0:02:39.6]} 8...
Nc6 {[%clk 0:02:52.3]} 9. Nd2 {[%clk 0:02:39]} 9... f5 {[%clk 0:02:48]} 10. h4
{[%clk 0:02:38.6]} 10... Nf6 {[%clk 0:02:46.1]} 11. h5 {[%clk 0:02:36.2]} 11...
Bc5 {[%clk 0:02:39.8]} 12. Bh3 {[%clk 0:02:30.6]} 12... Ne7 {[%clk 0:02:35.8]}
13. Qc2 {[%clk 0:02:19.5]} 13... Qd6 {[%clk 0:02:16.4]} 14. Kd1 {[%clk
0:01:59.5]} 14... O-O {[%clk 0:02:05.2]} 15. h6 {[%clk 0:01:47.2]} 15... g6
{[%clk 0:01:41.7]} 16. Kc1 {[%clk 0:01:46.5]} 16... Ra6 {[%clk 0:01:26.8]} 17.
Kb1 {[%clk 0:01:44.4]} 17... Rfa8 {[%clk 0:01:27.1]} 18. Ka2 {[%clk 0:01:42.2]}
18... Nc6 {[%clk 0:01:16.1]} 19. Nf1 {[%clk 0:01:18.4]} 19... a4 {[%clk
0:00:52]} 20. b4 {[%clk 0:00:56.6]} 20... Bxb4 {[%clk 0:00:52.3]} 21. Nd2 {[%clk
0:00:57]} 21... Bc5 {[%clk 0:00:48.5]} 22. Rhb1 {[%clk 0:00:55.8]} 22... Qf8
{[%clk 0:00:29.8]} 23. Bc1 {[%clk 0:00:51.8]} 23... b6 {[%clk 0:00:21.9]} 24. f4
{[%clk 0:00:46.6]} 24... exf4 {[%clk 0:00:17.3]} 25. Bg2 {[%clk 0:00:43.9]}
25... Qd6 {[%clk 0:00:14.8]} 26. Nf3 {[%clk 0:00:31.3]} 26... Re8 {[%clk
0:00:15]} 27. Ng5 {[%clk 0:00:30.5]} 27... Kf8 {[%clk 0:00:08.2]} 28. Rb5 {[%clk
0:00:25.3]} 28... Na7 {[%clk 0:00:07.7]} 29. Rbb1 {[%clk 0:00:19]} 29... Qe5
{[%clk 0:00:08]} 30. Bf3 {[%clk 0:00:17.3]} 30... Nc8 {[%clk 0:00:08.3]} 31. Nh3
{[%clk 0:00:16.9]} 31... Qe7 {[%clk 0:00:04]} 32. Nxf4 {[%clk 0:00:15.9]} 32...
Nd6 {[%clk 0:00:04.6]} 33. Nh3 {[%clk 0:00:12.1]} 33... Ng8 {[%clk 0:00:03.1]}
34. Bg5 {[%clk 0:00:12.4]} 34... Qe5 {[%clk 0:00:03]} 35. Bf4 {[%clk 0:00:12.2]}
35... Qf6 {[%clk 0:00:03.2]} 36. Ng5 {[%clk 0:00:12.6]} 36... Qe7 {[%clk
0:00:02.7]} 37. Bd5 {[%clk 0:00:12.4]} 37... Nf6 {[%clk 0:00:02]} 38. Ne6+
{[%clk 0:00:11.7]} 38... Qxe6 {[%clk 0:00:02.3]} 39. Bxe6 {[%clk 0:00:11.8]}
39... Rxe6 {[%clk 0:00:03.2]} 40. Bxd6+ {[%clk 0:00:11]} 40... cxd6 {[%clk
0:00:04.1]} 41. Qd2 {[%clk 0:00:10.2]} 41... Ra7 {[%clk 0:00:04.6]} 42. Rb2
{[%clk 0:00:08.8]} 42... Rae7 {[%clk 0:00:04.9]} 43. Rab1 {[%clk 0:00:08.6]}
43... Ng4 {[%clk 0:00:03.3]} 44. f3 {[%clk 0:00:07.1]} 44... Nf6 {[%clk
0:00:02.8]} 45. Qg5 {[%clk 0:00:03.6]} 45... Kf7 {[%clk 0:00:01.6]} 46. Qg2
{[%clk 0:00:03.5]} 46... Rxe2 {[%clk 0:00:02]} 47. Rxe2 {[%clk 0:00:03.3]} 47...
Re3 {[%clk 0:00:02.9]} 48. Rxe3 {[%clk 0:00:03.2]} 48... dxe3 {[%clk 0:00:03.8]}
49. d4 {[%clk 0:00:01.3]} 49... Nh5 {[%clk 0:00:04.7]} 50. Qe2 {[%clk
0:00:01.8]} 50... Nf4 {[%clk 0:00:05.6]} 51. Qd3 {[%clk 0:00:02.6]} 51... e2
{[%clk 0:00:05.2]} 52. dxc5 {[%clk 0:00:03.5]} 52... e1=Q {[%clk 0:00:06.1]} 53.
Rxe1 {[%clk 0:00:03.5]} 53... Nxd3 {[%clk 0:00:07]} 54. Rd1 {[%clk 0:00:04.4]}
54... Nxc5 {[%clk 0:00:07.7]} 55. Rxd6 {[%clk 0:00:05]} 55... Ne6 {[%clk
0:00:08.1]} 56. Rxb6 {[%clk 0:00:05.2]} 56... Kf6 {[%clk 0:00:09]} 57. Kb2
{[%clk 0:00:05.1]} 57... Ke5 {[%clk 0:00:09.3]} 58. Kc3 {[%clk 0:00:05.5]} 58...
Ng5 {[%clk 0:00:10.2]} 59. f4+ {[%clk 0:00:03.8]} 59... Kxf4 {[%clk 0:00:10.5]}
60. c5 {[%clk 0:00:04.4]} 60... Kg4 {[%clk 0:00:11.4]} 61. c6 {[%clk 0:00:04.8]}
61... Ne6 {[%clk 0:00:11.9]} 62. Rb7 {[%clk 0:00:03.9]} 62... Nd8 {[%clk
0:00:12.1]} 63. Rxh7 {[%clk 0:00:03.9]} 63... Nxc6 {[%clk 0:00:12.6]} 64. Rc7
{[%clk 0:00:04.2]} 64... Ne5 {[%clk 0:00:11.6]} 65. h7 {[%clk 0:00:04.2]} 65...
f4 {[%clk 0:00:12.5]} 66. h8=Q {[%clk 0:00:04.4]} 66... Kf5 {[%clk 0:00:13.4]}
67. Rc5 {[%clk 0:00:03.8]} 67... Kg4 {[%clk 0:00:13.3]} 68. Qxe5 {[%clk
0:00:04.7]} 68... g5 {[%clk 0:00:14]} 69. Qxg5+ {[%clk 0:00:04.2]} 69... Kh3
{[%clk 0:00:12.2]} 70. Rf5 {[%clk 0:00:05.1]} 70... Kh2 {[%clk 0:00:11.9]} 71.
Qxf4+ {[%clk 0:00:03.9]} 71... Kg1 {[%clk 0:00:12]} 72. Rg5+ {[%clk 0:00:04.3]}
72... Kh1 {[%clk 0:00:11.5]} 73. Qh4# {[%clk 0:00:05.2]} 1-0

[Event "Early-Titled-Tuesday-Blitz-September-05-2023"]
[Site "Chess.com"]
[Date "2023.09.05"]
[Round "7"]
[White "aakankshachess"]
[Black "Mikedannnn"]
[Result "0-1"]
[WhiteElo "2457"]
[BlackElo "2616"]
[TimeControl "180+1"]
[EndTime "9:17:57 PDT"]
[Termination "Mikedannnn won on time"]

1. e4 {[%clk 0:03:00.9]} 1... c5 {[%clk 0:03:00]} 2. Nf3 {[%clk 0:03:00.7]} 2...
e6 {[%clk 0:03:00.1]} 3. d4 {[%clk 0:03:00.7]} 3... cxd4 {[%clk 0:03:01]} 4.
Nxd4 {[%clk 0:03:01.4]} 4... Nc6 {[%clk 0:03:01.4]} 5. Nb5 {[%clk 0:02:51.9]}
5... d6 {[%clk 0:02:56.5]} 6. c4 {[%clk 0:02:51.7]} 6... Nf6 {[%clk 0:02:54.9]}
7. N1c3 {[%clk 0:02:51.6]} 7... a6 {[%clk 0:02:54.2]} 8. Na3 {[%clk 0:02:51]}
8... b6 {[%clk 0:02:54.6]} 9. Be2 {[%clk 0:02:45.5]} 9... Nb8 {[%clk 0:02:54.5]}
10. Be3 {[%clk 0:02:43.5]} 10... Bb7 {[%clk 0:02:53.8]} 11. f3 {[%clk
0:02:42.5]} 11... Nbd7 {[%clk 0:02:53.3]} 12. O-O {[%clk 0:02:41.1]} 12... Be7
{[%clk 0:02:52]} 13. Rc1 {[%clk 0:02:39.9]} 13... Rc8 {[%clk 0:02:51]} 14. Nc2
{[%clk 0:02:31]} 14... Qc7 {[%clk 0:02:50.6]} 15. Nd4 {[%clk 0:02:28.1]} 15...
O-O {[%clk 0:02:48.2]} 16. b3 {[%clk 0:02:28.3]} 16... Qb8 {[%clk 0:02:23.3]}
17. Bd3 {[%clk 0:02:08.7]} 17... Bd8 {[%clk 0:02:15.3]} 18. Kh1 {[%clk
0:02:06.8]} 18... Re8 {[%clk 0:02:11.3]} 19. Bb1 {[%clk 0:01:59.9]} 19... d5
{[%clk 0:02:00.4]} 20. cxd5 {[%clk 0:01:39.5]} 20... exd5 {[%clk 0:01:59.7]} 21.
Nf5 {[%clk 0:01:39]} 21... dxe4 {[%clk 0:01:49]} 22. fxe4 {[%clk 0:01:38.7]}
22... Bc7 {[%clk 0:01:44.7]} 23. Bg1 {[%clk 0:01:31.1]} 23... Be5 {[%clk
0:01:31.8]} 24. Qd2 {[%clk 0:01:03.3]} 24... Nc5 {[%clk 0:01:18.2]} 25. Qg5
{[%clk 0:00:55.2]} 25... Ne6 {[%clk 0:01:10.4]} 26. Qe3 {[%clk 0:00:18.9]} 26...
Ng4 {[%clk 0:01:03.1]} 27. Qh3 {[%clk 0:00:18.3]} 27... Nf6 {[%clk 0:00:37.9]}
28. Nd5 {[%clk 0:00:18.3]} 28... Rxc1 {[%clk 0:00:36.4]} 29. Rxc1 {[%clk
0:00:16.4]} 29... g6 {[%clk 0:00:26.7]} 30. Nfe7+ {[%clk 0:00:07.3]} 30... Kg7
{[%clk 0:00:19.9]} 31. Be3 {[%clk 0:00:07.1]} 31... h5 {[%clk 0:00:19.3]} 32.
Nxf6 {[%clk 0:00:06.4]} 32... Bxf6 {[%clk 0:00:19.4]} 33. Nd5 {[%clk 0:00:06.7]}
33... Bxd5 {[%clk 0:00:12.8]} 34. exd5 {[%clk 0:00:07.1]} 34... Nd4 {[%clk
0:00:13.4]} 35. Rf1 {[%clk 0:00:05.2]} 35... Qe5 {[%clk 0:00:12.6]} 36. Bxd4
{[%clk 0:00:03.9]} 36... Qxd4 {[%clk 0:00:13.5]} 37. Qf3 {[%clk 0:00:03.6]}
37... Re3 {[%clk 0:00:13.2]} 38. Qf2 {[%clk 0:00:02.8]} 38... Qe5 {[%clk
0:00:12.5]} 39. h3 {[%clk 0:00:02.6]} 39... Re2 {[%clk 0:00:12]} 40. Qf3 {[%clk
0:00:03.1]} 40... Rd2 {[%clk 0:00:10.8]} 41. Be4 {[%clk 0:00:02.4]} 41... Rd4
{[%clk 0:00:10.5]} 42. Bb1 {[%clk 0:00:02]} 42... Rxd5 {[%clk 0:00:09.8]} 43. a4
{[%clk 0:00:02.5]} 43... Rd4 {[%clk 0:00:09.2]} 44. b4 {[%clk 0:00:01.8]} 44...
Rxb4 {[%clk 0:00:08.9]} 45. Ba2 {[%clk 0:00:02.3]} 45... Rxa4 {[%clk 0:00:08.6]}
46. Bxf7 {[%clk 0:00:02.1]} 46... Kxf7 {[%clk 0:00:08.6]} 47. Qb3+ {[%clk
0:00:02.3]} 47... Qe6 {[%clk 0:00:07.5]} 48. Qxa4 {[%clk 0:00:02.9]} 48... b5
{[%clk 0:00:08.3]} 49. Qb4 {[%clk 0:00:02.8]} 49... Kg7 {[%clk 0:00:08.3]} 50.
Qc5 {[%clk 0:00:02.8]} 50... Be7 {[%clk 0:00:08.2]} 51. Qc7 {[%clk 0:00:02.7]}
51... b4 {[%clk 0:00:07.4]} 52. Qb7 {[%clk 0:00:01.2]} 52... a5 {[%clk
0:00:06.1]} 0-1

[Event "Early-Titled-Tuesday-Blitz-September-05-2023"]
[Site "Chess.com"]
[Date "2023.09.05"]
[Round "7"]
[White "TioCridineno"]
[Black "bazar-wokzal"]
[Result "0-1"]
[WhiteElo "2341"]
[BlackElo "2523"]
[TimeControl "180+1"]
[EndTime "9:18:00 PDT"]
[Termination "bazar-wokzal won on time"]

1. e4 {[%clk 0:03:00.9]} 1... Nc6 {[%clk 0:02:59.4]} 2. Nf3 {[%clk 0:03:00.6]}
2... d5 {[%clk 0:02:57.8]} 3. exd5 {[%clk 0:02:58.2]} 3... Qxd5 {[%clk
0:02:57.5]} 4. Nc3 {[%clk 0:02:58.8]} 4... Qa5 {[%clk 0:02:57.7]} 5. Bc4 {[%clk
0:02:58.1]} 5... Bg4 {[%clk 0:02:57]} 6. h3 {[%clk 0:02:57.8]} 6... Bh5 {[%clk
0:02:56.4]} 7. g4 {[%clk 0:02:57.8]} 7... Bg6 {[%clk 0:02:55.7]} 8. d3 {[%clk
0:02:58.3]} 8... O-O-O {[%clk 0:02:53.7]} 9. Bd2 {[%clk 0:02:58.6]} 9... Nf6
{[%clk 0:02:46.7]} 10. Qe2 {[%clk 0:02:58.3]} 10... e5 {[%clk 0:02:45.8]} 11.
O-O-O {[%clk 0:02:57.8]} 11... Nd4 {[%clk 0:02:40.6]} 12. Qxe5 {[%clk
0:02:47.4]} 12... Bb4 {[%clk 0:01:39.8]} 13. Qxa5 {[%clk 0:02:33.8]} 13... Bxa5
{[%clk 0:01:39.2]} 14. Nxd4 {[%clk 0:02:34.5]} 14... Rxd4 {[%clk 0:01:38.2]} 15.
f4 {[%clk 0:02:34.8]} 15... Bxc3 {[%clk 0:01:31.4]} 16. bxc3 {[%clk 0:02:31.8]}
16... Rxc4 {[%clk 0:01:31.5]} 17. dxc4 {[%clk 0:02:27.8]} 17... Be4 {[%clk
0:01:30.8]} 18. Rhe1 {[%clk 0:02:27.5]} 18... Bf3 {[%clk 0:01:30.5]} 19. Re7
{[%clk 0:02:22.3]} 19... Bxd1 {[%clk 0:01:28.6]} 20. Kxd1 {[%clk 0:02:22.8]}
20... Rf8 {[%clk 0:01:27.4]} 21. f5 {[%clk 0:02:18.5]} 21... Kd8 {[%clk
0:01:10.1]} 22. Re2 {[%clk 0:02:13.4]} 22... Re8 {[%clk 0:01:08.5]} 23. Bg5
{[%clk 0:02:09.1]} 23... Rxe2 {[%clk 0:01:05.6]} 24. Kxe2 {[%clk 0:02:09]} 24...
Kd7 {[%clk 0:00:59.2]} 25. Kd3 {[%clk 0:01:53.3]} 25... Kc6 {[%clk 0:00:54.4]}
26. Bxf6 {[%clk 0:01:36.5]} 26... gxf6 {[%clk 0:00:55.3]} 27. Kd4 {[%clk
0:01:36.9]} 27... Kb6 {[%clk 0:00:32.5]} 28. Kd5 {[%clk 0:01:07.5]} 28... Ka5
{[%clk 0:00:32.1]} 29. h4 {[%clk 0:01:04.5]} 29... h6 {[%clk 0:00:31.8]} 30. Ke4
{[%clk 0:00:21.9]} 30... Ka4 {[%clk 0:00:30.5]} 31. Kf4 {[%clk 0:00:21.9]} 31...
Ka3 {[%clk 0:00:30.7]} 32. g5 {[%clk 0:00:22.4]} 32... fxg5+ {[%clk 0:00:30.5]}
33. hxg5 {[%clk 0:00:22.9]} 33... hxg5+ {[%clk 0:00:31.1]} 34. Kxg5 {[%clk
0:00:23.4]} 34... Kxa2 {[%clk 0:00:31.5]} 35. Kf6 {[%clk 0:00:24]} 35... a5
{[%clk 0:00:31.7]} 36. Kxf7 {[%clk 0:00:24.6]} 36... a4 {[%clk 0:00:32.2]} 37.
Kg7 {[%clk 0:00:25.5]} 37... a3 {[%clk 0:00:32.5]} 38. f6 {[%clk 0:00:26.4]}
38... Kb2 {[%clk 0:00:32.9]} 39. f7 {[%clk 0:00:26.9]} 39... a2 {[%clk
0:00:33.3]} 40. f8=Q {[%clk 0:00:27.2]} 40... a1=Q {[%clk 0:00:31.6]} 41. Qb4+
{[%clk 0:00:27.2]} 41... Kxc2 {[%clk 0:00:31.7]} 42. Qxb7 {[%clk 0:00:27.1]}
42... Qxc3+ {[%clk 0:00:31.5]} 43. Kf7 {[%clk 0:00:26.3]} 43... Qxc4+ {[%clk
0:00:31.6]} 44. Ke7 {[%clk 0:00:26.8]} 44... c5 {[%clk 0:00:30.7]} 45. Kd6
{[%clk 0:00:27]} 45... Qd4+ {[%clk 0:00:30.7]} 46. Ke6 {[%clk 0:00:23.3]} 46...
c4 {[%clk 0:00:30.3]} 47. Qg2+ {[%clk 0:00:21.4]} 47... Kc3 {[%clk 0:00:27.7]}
48. Qf3+ {[%clk 0:00:20.3]} 48... Qd3 {[%clk 0:00:26.5]} 49. Qf6+ {[%clk
0:00:20.3]} 49... Kc2 {[%clk 0:00:25]} 50. Qa1 {[%clk 0:00:20]} 50... c3 {[%clk
0:00:23.7]} 51. Qa2+ {[%clk 0:00:18.9]} 51... Kd1 {[%clk 0:00:23.7]} 52. Qa1+
{[%clk 0:00:18.6]} 52... Kd2 {[%clk 0:00:23.9]} 53. Qa5 {[%clk 0:00:17.3]} 53...
Qc4+ {[%clk 0:00:20.6]} 54. Kf6 {[%clk 0:00:13.3]} 54... Kd3 {[%clk 0:00:20.1]}
55. Qf5+ {[%clk 0:00:13]} 55... Qe4 {[%clk 0:00:19.5]} 56. Qf1+ {[%clk
0:00:13.6]} 56... Kd2 {[%clk 0:00:17.6]} 57. Qf2+ {[%clk 0:00:13.5]} 57... Qe2
{[%clk 0:00:17]} 58. Qd4+ {[%clk 0:00:13.7]} 58... Qd3 {[%clk 0:00:17.1]} 59.
Qf2+ {[%clk 0:00:13.7]} 59... Kc1 {[%clk 0:00:17.6]} 60. Qe1+ {[%clk 0:00:13]}
60... Kb2 {[%clk 0:00:17.9]} 61. Qe5 {[%clk 0:00:11.9]} 61... Qf3+ {[%clk
0:00:16.4]} 62. Kg6 {[%clk 0:00:11.9]} 62... Qg4+ {[%clk 0:00:15.8]} 63. Kf6
{[%clk 0:00:11.7]} 63... Qc4 {[%clk 0:00:15.8]} 64. Qh2+ {[%clk 0:00:10.3]}
64... Kb3 {[%clk 0:00:16]} 65. Qb8+ {[%clk 0:00:10.1]} 65... Ka2 {[%clk
0:00:16.3]} 66. Qa7+ {[%clk 0:00:10.1]} 66... Kb2 {[%clk 0:00:16.5]} 67. Qb6+
{[%clk 0:00:10]} 67... Qb3 {[%clk 0:00:17]} 68. Qf2+ {[%clk 0:00:10.1]} 68... c2
{[%clk 0:00:17.1]} 69. Ke5 {[%clk 0:00:09.7]} 69... Qc3+ {[%clk 0:00:16.7]} 70.
Ke4 {[%clk 0:00:09.3]} 70... Kb1 {[%clk 0:00:16.8]} 71. Qb6+ {[%clk 0:00:09.1]}
71... Qb2 {[%clk 0:00:17.2]} 0-1

[Event "Early-Titled-Tuesday-Blitz-September-05-2023"]
[Site "Chess.com"]
[Date "2023.09.05"]
[Round "7"]
[White "Hamisandwich"]
[Black "platy3"]
[Result "0-1"]
[WhiteElo "2652"]
[BlackElo "2912"]
[TimeControl "180+1"]
[EndTime "9:18:01 PDT"]
[Termination "platy3 won by resignation"]

1. a3 {[%clk 0:02:57.7]} 1... Nf6 {[%clk 0:02:53.4]} 2. d4 {[%clk 0:02:56.9]}
2... d5 {[%clk 0:02:45.9]} 3. e3 {[%clk 0:02:53.6]} 3... c6 {[%clk 0:02:44.7]}
4. c4 {[%clk 0:02:46]} 4... Bf5 {[%clk 0:02:43.3]} 5. Nc3 {[%clk 0:02:46.5]}
5... e6 {[%clk 0:02:43]} 6. Bd3 {[%clk 0:02:47]} 6... Bg6 {[%clk 0:02:42.9]} 7.
Nge2 {[%clk 0:02:46.5]} 7... Nbd7 {[%clk 0:02:43.3]} 8. cxd5 {[%clk 0:02:34.7]}
8... exd5 {[%clk 0:02:42.5]} 9. f3 {[%clk 0:02:35.3]} 9... c5 {[%clk 0:02:36.7]}
10. dxc5 {[%clk 0:02:18.5]} 10... Bxd3 {[%clk 0:02:21.4]} 11. Qxd3 {[%clk
0:02:17.9]} 11... Nxc5 {[%clk 0:02:22.2]} 12. Qb5+ {[%clk 0:02:14.3]} 12... Qd7
{[%clk 0:02:20.3]} 13. Qxd7+ {[%clk 0:02:03.7]} 13... Kxd7 {[%clk 0:02:21]} 14.
Nd4 {[%clk 0:01:50.6]} 14... Bd6 {[%clk 0:02:12.7]} 15. Ke2 {[%clk 0:01:23.8]}
15... Rhe8 {[%clk 0:02:11.7]} 16. Bd2 {[%clk 0:01:09.7]} 16... g6 {[%clk
0:02:07.1]} 17. Rac1 {[%clk 0:01:03.4]} 17... a6 {[%clk 0:02:00.4]} 18. b4
{[%clk 0:00:59.5]} 18... Ne6 {[%clk 0:01:59.9]} 19. Nxe6 {[%clk 0:00:59.7]}
19... Rxe6 {[%clk 0:01:58.4]} 20. Kd3 {[%clk 0:00:58.6]} 20... Rae8 {[%clk
0:01:45.5]} 21. Ne2 {[%clk 0:00:50.1]} 21... Be5 {[%clk 0:01:45.5]} 22. Nd4
{[%clk 0:00:42.7]} 22... R6e7 {[%clk 0:01:45.4]} 23. Rc2 {[%clk 0:00:39.2]}
23... h5 {[%clk 0:01:45]} 24. h3 {[%clk 0:00:37.5]} 24... Rc8 {[%clk 0:01:42.5]}
25. Rhc1 {[%clk 0:00:34.7]} 25... Rxc2 {[%clk 0:01:39.6]} 26. Rxc2 {[%clk
0:00:35.6]} 26... Re8 {[%clk 0:01:38.9]} 27. Be1 {[%clk 0:00:33.5]} 27... Nh7
{[%clk 0:01:35.2]} 28. Rc5 {[%clk 0:00:28]} 28... Nf6 {[%clk 0:01:35.5]} 29. Bh4
{[%clk 0:00:27.7]} 29... b6 {[%clk 0:01:35.7]} 30. Rc2 {[%clk 0:00:26.7]} 30...
Ng8 {[%clk 0:01:26.9]} 31. Nc6 {[%clk 0:00:26]} 31... Bg7 {[%clk 0:01:23.7]} 32.
Bg3 {[%clk 0:00:26.2]} 32... Nh6 {[%clk 0:00:53.8]} 33. Nb8+ {[%clk 0:00:22.7]}
33... Ke7 {[%clk 0:00:54.5]} 34. Rc7+ {[%clk 0:00:18.5]} 34... Kf8 {[%clk
0:00:54.8]} 35. Nd7+ {[%clk 0:00:18]} 35... Kg8 {[%clk 0:00:54.9]} 36. Nxb6
{[%clk 0:00:18.5]} 36... Nf5 {[%clk 0:00:52.2]} 37. Bf2 {[%clk 0:00:18.8]} 37...
d4 {[%clk 0:00:21.6]} 38. e4 {[%clk 0:00:19]} 38... Nd6 {[%clk 0:00:22.1]} 39.
a4 {[%clk 0:00:16.9]} 39... f5 {[%clk 0:00:20.3]} 40. exf5 {[%clk 0:00:12]}
40... Nxf5 {[%clk 0:00:21.2]} 41. Rc8 {[%clk 0:00:12.6]} 41... Kf7 {[%clk
0:00:19.4]} 42. b5 {[%clk 0:00:07.1]} 42... axb5 {[%clk 0:00:16.1]} 43. a5
{[%clk 0:00:05.8]} 43... Re7 {[%clk 0:00:14.5]} 44. a6 {[%clk 0:00:05.5]} 44...
Ra7 {[%clk 0:00:14]} 45. Ra8 {[%clk 0:00:05.1]} 45... Rxa8 {[%clk 0:00:06.9]}
46. Nxa8 {[%clk 0:00:06]} 46... Ne7 {[%clk 0:00:07.4]} 47. Nc7 {[%clk
0:00:05.6]} 47... Nc6 {[%clk 0:00:06.4]} 48. Nxb5 {[%clk 0:00:05.7]} 48... Nb4+
{[%clk 0:00:06.8]} 49. Kc4 {[%clk 0:00:05.4]} 49... Nxa6 {[%clk 0:00:07.7]} 50.
Bxd4 {[%clk 0:00:06.1]} 50... Bh6 {[%clk 0:00:07.9]} 51. Kd3 {[%clk 0:00:05.9]}
51... Nb4+ {[%clk 0:00:07.6]} 52. Ke4 {[%clk 0:00:06.1]} 52... Nc6 {[%clk
0:00:08.4]} 53. Nc3 {[%clk 0:00:06.8]} 53... Ne7 {[%clk 0:00:07.6]} 54. Nd5
{[%clk 0:00:06.8]} 54... Nf5 {[%clk 0:00:07.4]} 55. Bf2 {[%clk 0:00:07.4]} 55...
Nd6+ {[%clk 0:00:07.6]} 56. Kd3 {[%clk 0:00:08]} 56... Nf5 {[%clk 0:00:07.7]}
57. Ke4 {[%clk 0:00:07.9]} 57... Nd6+ {[%clk 0:00:08.1]} 58. Kd3 {[%clk
0:00:08.6]} 58... Nf5 {[%clk 0:00:08.5]} 59. Ne3 {[%clk 0:00:09.4]} 59... Bxe3
{[%clk 0:00:07.3]} 60. Bxe3 {[%clk 0:00:10.3]} 60... Nh4 {[%clk 0:00:08.1]} 61.
Ke2 {[%clk 0:00:08]} 61... Nxg2 {[%clk 0:00:04.4]} 62. Bg5 {[%clk 0:00:08.6]}
62... Ke6 {[%clk 0:00:05]} 63. Kf2 {[%clk 0:00:07.8]} 63... Kf5 {[%clk
0:00:05.5]} 64. Kxg2 {[%clk 0:00:08.4]} 64... Kxg5 {[%clk 0:00:05.9]} 65. Kg3
{[%clk 0:00:08.9]} 65... h4+ {[%clk 0:00:04.7]} 66. Kg2 {[%clk 0:00:03.4]} 66...
Kf4 {[%clk 0:00:05.6]} 67. Kf2 {[%clk 0:00:04.1]} 67... g5 {[%clk 0:00:06.2]}
68. Kg2 {[%clk 0:00:04.6]} 68... Ke3 {[%clk 0:00:06.8]} 69. Kg1 {[%clk
0:00:03.7]} 69... Kxf3 {[%clk 0:00:07.2]} 70. Kh2 {[%clk 0:00:03.8]} 70... Kf2
{[%clk 0:00:07.5]} 0-1